{"text_format":"1","workbook":"xlsx","n_sheets":6,"sheets":["typ majetku","výpočty","Příjemka drobného majetku","Evidenční list","List1","kódy DPH"],"not_rendered":{"charts":0,"images":1,"macros":1,"external_links":0,"defined_names":2,"comments":0,"pivot_tables":0},"unopened":[],"bounds":{"document_bytes":16777216,"sheet_cells":100000,"rows_first":2000,"rows_last":500,"rows_between":2000,"halvings":0,"cell_chars":16384,"cell_head_chars":4096},"cells_cut":0,"cells_raw":0,"read":"whole","date_system":"1900"}

{"sheet":"typ majetku","index":0,"n_rows":6,"n_cols":1,"rows_kept":6,"cut":false,"hidden":true,"merged":[]}
["NÁPOVĚDA - Typy majetku:"]
["DNM - drobný nehmotný majetek pořízený od 1.1.2003"]
["DHM - drobný hmotný majetek pořízený od 1.1.2003"]
["DHK - drahé kovy pořízené od 1.1.2003"]
["DNEV - nehmotný majetek do 7.000 Kč"]
["DHEV - hmotný majetek do 2.000 Kč"]

{"sheet":"výpočty","index":1,"n_rows":27,"n_cols":10,"rows_kept":27,"cut":false,"hidden":true,"merged":[]}
[]
[]
["ZD","ZD PK","daň","poměr_k","koeficient","EV_CENA","poměr ev_cena","počet kusů","poměr ks","EV_CENA_K"]
[{"$f":"'Příjemka drobného majetku'!J10","v":0},null,{"$f":"A4*'Příjemka drobného majetku'!K10","v":0},{"$f":"C4*'Příjemka drobného majetku'!$Q$3*(1-'Příjemka drobného majetku'!$T$3/100)","v":0},{"$f":"C4*(1-'Příjemka drobného majetku'!$T$3/100)","v":0},{"$f":"IF(OR('Příjemka drobného majetku'!$M$7=5,'Příjemka drobného majetku'!$M$7=9,'Příjemka drobného majetku'!$M$7=13,'Příjemka drobného majetku'!$M$7=17,'Příjemka drobného majetku'!$M$7=21,'Příjemka drobného majetku'!$M$7=24,'Příjemka drobného majetku'!$M$7=28),A4+(C4-D4),IF(OR('Příjemka drobného majetku'!$M$7=4,'Příjemka drobného majetku'!$M$7=8,'Příjemka drobného majetku'!$M$7=12,'Příjemka drobného majetku'!$M$7=16,'Příjemka drobného majetku'!$M$7=20,'Příjemka drobného majetku'!$M$7=23,'Příjemka drobného majetku'!$M$7=27),A4+C4-E4,IF(OR('Příjemka drobného majetku'!$M$7=1,'Příjemka drobného majetku'!$M$7=2,'Příjemka drobného majetku'!$M$7=7,'Příjemka drobného majetku'!$M$7=10,'Příjemka drobného majetku'!$M$7=15,'Příjemka drobného majetku'!$M$7=18,'Příjemka drobného majetku'!$M$7=25),A4+C4,A4)))","v":0},{"$f":"IF($F$26=0,0,F4/$F$26)","v":0},{"$f":"'Příjemka drobného majetku'!H10","v":0},{"$f":"IF($H$26=0,0,H4/$H$26)","v":0},{"$f":"IF(H4=0,0,F4+$I$27)","v":0}]
[{"$f":"'Příjemka drobného majetku'!J11","v":0},null,{"$f":"A5*'Příjemka drobného majetku'!K11","v":0},{"$f":"C5*'Příjemka drobného majetku'!$Q$3*(1-'Příjemka drobného majetku'!$T$3/100)","v":0},{"$f":"C5*(1-'Příjemka drobného majetku'!$T$3/100)","v":0},{"$f":"IF(OR('Příjemka drobného majetku'!$M$7=5,'Příjemka drobného majetku'!$M$7=9,'Příjemka drobného majetku'!$M$7=13,'Příjemka drobného majetku'!$M$7=17,'Příjemka drobného majetku'!$M$7=21,'Příjemka drobného majetku'!$M$7=24,'Příjemka drobného majetku'!$M$7=28),A5+(C5-D5),IF(OR('Příjemka drobného majetku'!$M$7=4,'Příjemka drobného majetku'!$M$7=8,'Příjemka drobného majetku'!$M$7=12,'Příjemka drobného majetku'!$M$7=16,'Příjemka drobného majetku'!$M$7=20,'Příjemka drobného majetku'!$M$7=23,'Příjemka drobného majetku'!$M$7=27),A5+C5-E5,IF(OR('Příjemka drobného majetku'!$M$7=1,'Příjemka drobného majetku'!$M$7=2,'Příjemka drobného majetku'!$M$7=7,'Příjemka drobného majetku'!$M$7=10,'Příjemka drobného majetku'!$M$7=15,'Příjemka drobného majetku'!$M$7=18,'Příjemka drobného majetku'!$M$7=25),A5+C5,A5)))","v":0},{"$f":"IF($F$26=0,0,F5/$F$26)","v":0},{"$f":"'Příjemka drobného majetku'!H11","v":0},{"$f":"IF($H$26=0,0,H5/$H$26)","v":0},0]
[{"$f":"'Příjemka drobného majetku'!J12","v":0},null,{"$f":"A6*'Příjemka drobného majetku'!K12","v":0},{"$f":"C6*'Příjemka drobného majetku'!$Q$3*(1-'Příjemka drobného majetku'!$T$3/100)","v":0},{"$f":"C6*(1-'Příjemka drobného majetku'!$T$3/100)","v":0},{"$f":"IF(OR('Příjemka drobného majetku'!$M$7=5,'Příjemka drobného majetku'!$M$7=9,'Příjemka drobného majetku'!$M$7=13,'Příjemka drobného majetku'!$M$7=17,'Příjemka drobného majetku'!$M$7=21,'Příjemka drobného majetku'!$M$7=24,'Příjemka drobného majetku'!$M$7=28),A6+(C6-D6),IF(OR('Příjemka drobného majetku'!$M$7=4,'Příjemka drobného majetku'!$M$7=8,'Příjemka drobného majetku'!$M$7=12,'Příjemka drobného majetku'!$M$7=16,'Příjemka drobného majetku'!$M$7=20,'Příjemka drobného majetku'!$M$7=23,'Příjemka drobného majetku'!$M$7=27),A6+C6-E6,IF(OR('Příjemka drobného majetku'!$M$7=1,'Příjemka drobného majetku'!$M$7=2,'Příjemka drobného majetku'!$M$7=7,'Příjemka drobného majetku'!$M$7=10,'Příjemka drobného majetku'!$M$7=15,'Příjemka drobného majetku'!$M$7=18,'Příjemka drobného majetku'!$M$7=25),A6+C6,A6)))","v":0},0,{"$f":"'Příjemka drobného majetku'!H12","v":0},0,0]
[{"$f":"'Příjemka drobného majetku'!J13","v":0},null,{"$f":"A7*'Příjemka drobného majetku'!K13","v":0},{"$f":"C7*'Příjemka drobného majetku'!$Q$3*(1-'Příjemka drobného majetku'!$T$3/100)","v":0},{"$f":"C7*(1-'Příjemka drobného majetku'!$T$3/100)","v":0},{"$f":"IF(OR('Příjemka drobného majetku'!$M$7=5,'Příjemka drobného majetku'!$M$7=9,'Příjemka drobného majetku'!$M$7=13,'Příjemka drobného majetku'!$M$7=17,'Příjemka drobného majetku'!$M$7=21,'Příjemka drobného majetku'!$M$7=24,'Příjemka drobného majetku'!$M$7=28),A7+(C7-D7),IF(OR('Příjemka drobného majetku'!$M$7=4,'Příjemka drobného majetku'!$M$7=8,'Příjemka drobného majetku'!$M$7=12,'Příjemka drobného majetku'!$M$7=16,'Příjemka drobného majetku'!$M$7=20,'Příjemka drobného majetku'!$M$7=23,'Příjemka drobného majetku'!$M$7=27),A7+C7-E7,IF(OR('Příjemka drobného majetku'!$M$7=1,'Příjemka drobného majetku'!$M$7=2,'Příjemka drobného majetku'!$M$7=7,'Příjemka drobného majetku'!$M$7=10,'Příjemka drobného majetku'!$M$7=15,'Příjemka drobného majetku'!$M$7=18,'Příjemka drobného majetku'!$M$7=25),A7+C7,A7)))","v":0},0,{"$f":"'Příjemka drobného majetku'!H13","v":0},0,0]
[{"$f":"'Příjemka drobného majetku'!J14","v":0},null,{"$f":"A8*'Příjemka drobného majetku'!K14","v":0},{"$f":"C8*'Příjemka drobného majetku'!$Q$3*(1-'Příjemka drobného majetku'!$T$3/100)","v":0},{"$f":"C8*(1-'Příjemka drobného majetku'!$T$3/100)","v":0},{"$f":"IF(OR('Příjemka drobného majetku'!$M$7=5,'Příjemka drobného majetku'!$M$7=9,'Příjemka drobného majetku'!$M$7=13,'Příjemka drobného majetku'!$M$7=17,'Příjemka drobného majetku'!$M$7=21,'Příjemka drobného majetku'!$M$7=24,'Příjemka drobného majetku'!$M$7=28),A8+(C8-D8),IF(OR('Příjemka drobného majetku'!$M$7=4,'Příjemka drobného majetku'!$M$7=8,'Příjemka drobného majetku'!$M$7=12,'Příjemka drobného majetku'!$M$7=16,'Příjemka drobného majetku'!$M$7=20,'Příjemka drobného majetku'!$M$7=23,'Příjemka drobného majetku'!$M$7=27),A8+C8-E8,IF(OR('Příjemka drobného majetku'!$M$7=1,'Příjemka drobného majetku'!$M$7=2,'Příjemka drobného majetku'!$M$7=7,'Příjemka drobného majetku'!$M$7=10,'Příjemka drobného majetku'!$M$7=15,'Příjemka drobného majetku'!$M$7=18,'Příjemka drobného majetku'!$M$7=25),A8+C8,A8)))","v":0},0,{"$f":"'Příjemka drobného majetku'!H14","v":0},0,0]
[{"$f":"'Příjemka drobného majetku'!J15","v":0},null,{"$f":"A9*'Příjemka drobného majetku'!K15","v":0},{"$f":"C9*'Příjemka drobného majetku'!$Q$3*(1-'Příjemka drobného majetku'!$T$3/100)","v":0},{"$f":"C9*(1-'Příjemka drobného majetku'!$T$3/100)","v":0},{"$f":"IF(OR('Příjemka drobného majetku'!$M$7=5,'Příjemka drobného majetku'!$M$7=9,'Příjemka drobného majetku'!$M$7=13,'Příjemka drobného majetku'!$M$7=17,'Příjemka drobného majetku'!$M$7=21,'Příjemka drobného majetku'!$M$7=24,'Příjemka drobného majetku'!$M$7=28),A9+(C9-D9),IF(OR('Příjemka drobného majetku'!$M$7=4,'Příjemka drobného majetku'!$M$7=8,'Příjemka drobného majetku'!$M$7=12,'Příjemka drobného majetku'!$M$7=16,'Příjemka drobného majetku'!$M$7=20,'Příjemka drobného majetku'!$M$7=23,'Příjemka drobného majetku'!$M$7=27),A9+C9-E9,IF(OR('Příjemka drobného majetku'!$M$7=1,'Příjemka drobného majetku'!$M$7=2,'Příjemka drobného majetku'!$M$7=7,'Příjemka drobného majetku'!$M$7=10,'Příjemka drobného majetku'!$M$7=15,'Příjemka drobného majetku'!$M$7=18,'Příjemka drobného majetku'!$M$7=25),A9+C9,A9)))","v":0},0,{"$f":"'Příjemka drobného majetku'!H15","v":0},0,0]
[{"$f":"'Příjemka drobného majetku'!J16","v":0},null,{"$f":"A10*'Příjemka drobného majetku'!K16","v":0},{"$f":"C10*'Příjemka drobného majetku'!$Q$3*(1-'Příjemka drobného majetku'!$T$3/100)","v":0},{"$f":"C10*(1-'Příjemka drobného majetku'!$T$3/100)","v":0},{"$f":"IF(OR('Příjemka drobného majetku'!$M$7=5,'Příjemka drobného majetku'!$M$7=9,'Příjemka drobného majetku'!$M$7=13,'Příjemka drobného majetku'!$M$7=17,'Příjemka drobného majetku'!$M$7=21,'Příjemka drobného majetku'!$M$7=24,'Příjemka drobného majetku'!$M$7=28),A10+(C10-D10),IF(OR('Příjemka drobného majetku'!$M$7=4,'Příjemka drobného majetku'!$M$7=8,'Příjemka drobného majetku'!$M$7=12,'Příjemka drobného majetku'!$M$7=16,'Příjemka drobného majetku'!$M$7=20,'Příjemka drobného majetku'!$M$7=23,'Příjemka drobného majetku'!$M$7=27),A10+C10-E10,IF(OR('Příjemka drobného majetku'!$M$7=1,'Příjemka drobného majetku'!$M$7=2,'Příjemka drobného majetku'!$M$7=7,'Příjemka drobného majetku'!$M$7=10,'Příjemka drobného majetku'!$M$7=15,'Příjemka drobného majetku'!$M$7=18,'Příjemka drobného majetku'!$M$7=25),A10+C10,A10)))","v":0},0,{"$f":"'Příjemka drobného majetku'!H16","v":0},0,0]
[{"$f":"'Příjemka drobného majetku'!J17","v":0},null,{"$f":"A11*'Příjemka drobného majetku'!K17","v":0},{"$f":"C11*'Příjemka drobného majetku'!$Q$3*(1-'Příjemka drobného majetku'!$T$3/100)","v":0},{"$f":"C11*(1-'Příjemka drobného majetku'!$T$3/100)","v":0},{"$f":"IF(OR('Příjemka drobného majetku'!$M$7=5,'Příjemka drobného majetku'!$M$7=9,'Příjemka drobného majetku'!$M$7=13,'Příjemka drobného majetku'!$M$7=17,'Příjemka drobného majetku'!$M$7=21,'Příjemka drobného majetku'!$M$7=24,'Příjemka drobného majetku'!$M$7=28),A11+(C11-D11),IF(OR('Příjemka drobného majetku'!$M$7=4,'Příjemka drobného majetku'!$M$7=8,'Příjemka drobného majetku'!$M$7=12,'Příjemka drobného majetku'!$M$7=16,'Příjemka drobného majetku'!$M$7=20,'Příjemka drobného majetku'!$M$7=23,'Příjemka drobného majetku'!$M$7=27),A11+C11-E11,IF(OR('Příjemka drobného majetku'!$M$7=1,'Příjemka drobného majetku'!$M$7=2,'Příjemka drobného majetku'!$M$7=7,'Příjemka drobného majetku'!$M$7=10,'Příjemka drobného majetku'!$M$7=15,'Příjemka drobného majetku'!$M$7=18,'Příjemka drobného majetku'!$M$7=25),A11+C11,A11)))","v":0},0,{"$f":"'Příjemka drobného majetku'!H17","v":0},0,0]
[{"$f":"'Příjemka drobného majetku'!J18","v":0},null,{"$f":"A12*'Příjemka drobného majetku'!K18","v":0},{"$f":"C12*'Příjemka drobného majetku'!$Q$3*(1-'Příjemka drobného majetku'!$T$3/100)","v":0},{"$f":"C12*(1-'Příjemka drobného majetku'!$T$3/100)","v":0},{"$f":"IF(OR('Příjemka drobného majetku'!$M$7=5,'Příjemka drobného majetku'!$M$7=9,'Příjemka drobného majetku'!$M$7=13,'Příjemka drobného majetku'!$M$7=17,'Příjemka drobného majetku'!$M$7=21,'Příjemka drobného majetku'!$M$7=24,'Příjemka drobného majetku'!$M$7=28),A12+(C12-D12),IF(OR('Příjemka drobného majetku'!$M$7=4,'Příjemka drobného majetku'!$M$7=8,'Příjemka drobného majetku'!$M$7=12,'Příjemka drobného majetku'!$M$7=16,'Příjemka drobného majetku'!$M$7=20,'Příjemka drobného majetku'!$M$7=23,'Příjemka drobného majetku'!$M$7=27),A12+C12-E12,IF(OR('Příjemka drobného majetku'!$M$7=1,'Příjemka drobného majetku'!$M$7=2,'Příjemka drobného majetku'!$M$7=7,'Příjemka drobného majetku'!$M$7=10,'Příjemka drobného majetku'!$M$7=15,'Příjemka drobného majetku'!$M$7=18,'Příjemka drobného majetku'!$M$7=25),A12+C12,A12)))","v":0},0,{"$f":"'Příjemka drobného majetku'!H18","v":0},0,0]
[{"$f":"'Příjemka drobného majetku'!J19","v":0},null,{"$f":"A13*'Příjemka drobného majetku'!K19","v":0},{"$f":"C13*'Příjemka drobného majetku'!$Q$3*(1-'Příjemka drobného majetku'!$T$3/100)","v":0},{"$f":"C13*(1-'Příjemka drobného majetku'!$T$3/100)","v":0},{"$f":"IF(OR('Příjemka drobného majetku'!$M$7=5,'Příjemka drobného majetku'!$M$7=9,'Příjemka drobného majetku'!$M$7=13,'Příjemka drobného majetku'!$M$7=17,'Příjemka drobného majetku'!$M$7=21,'Příjemka drobného majetku'!$M$7=24,'Příjemka drobného majetku'!$M$7=28),A13+(C13-D13),IF(OR('Příjemka drobného majetku'!$M$7=4,'Příjemka drobného majetku'!$M$7=8,'Příjemka drobného majetku'!$M$7=12,'Příjemka drobného majetku'!$M$7=16,'Příjemka drobného majetku'!$M$7=20,'Příjemka drobného majetku'!$M$7=23,'Příjemka drobného majetku'!$M$7=27),A13+C13-E13,IF(OR('Příjemka drobného majetku'!$M$7=1,'Příjemka drobného majetku'!$M$7=2,'Příjemka drobného majetku'!$M$7=7,'Příjemka drobného majetku'!$M$7=10,'Příjemka drobného majetku'!$M$7=15,'Příjemka drobného majetku'!$M$7=18,'Příjemka drobného majetku'!$M$7=25),A13+C13,A13)))","v":0},0,{"$f":"'Příjemka drobného majetku'!H19","v":0},0,0]
[{"$f":"'Příjemka drobného majetku'!J20","v":0},null,{"$f":"A14*'Příjemka drobného majetku'!K20","v":0},{"$f":"C14*'Příjemka drobného majetku'!$Q$3*(1-'Příjemka drobného majetku'!$T$3/100)","v":0},{"$f":"C14*(1-'Příjemka drobného majetku'!$T$3/100)","v":0},{"$f":"IF(OR('Příjemka drobného majetku'!$M$7=5,'Příjemka drobného majetku'!$M$7=9,'Příjemka drobného majetku'!$M$7=13,'Příjemka drobného majetku'!$M$7=17,'Příjemka drobného majetku'!$M$7=21,'Příjemka drobného majetku'!$M$7=24,'Příjemka drobného majetku'!$M$7=28),A14+(C14-D14),IF(OR('Příjemka drobného majetku'!$M$7=4,'Příjemka drobného majetku'!$M$7=8,'Příjemka drobného majetku'!$M$7=12,'Příjemka drobného majetku'!$M$7=16,'Příjemka drobného majetku'!$M$7=20,'Příjemka drobného majetku'!$M$7=23,'Příjemka drobného majetku'!$M$7=27),A14+C14-E14,IF(OR('Příjemka drobného majetku'!$M$7=1,'Příjemka drobného majetku'!$M$7=2,'Příjemka drobného majetku'!$M$7=7,'Příjemka drobného majetku'!$M$7=10,'Příjemka drobného majetku'!$M$7=15,'Příjemka drobného majetku'!$M$7=18,'Příjemka drobného majetku'!$M$7=25),A14+C14,A14)))","v":0},0,{"$f":"'Příjemka drobného majetku'!H20","v":0},0,0]
[{"$f":"'Příjemka drobného majetku'!J21","v":0},null,{"$f":"A15*'Příjemka drobného majetku'!K21","v":0},{"$f":"C15*'Příjemka drobného majetku'!$Q$3*(1-'Příjemka drobného majetku'!$T$3/100)","v":0},{"$f":"C15*(1-'Příjemka drobného majetku'!$T$3/100)","v":0},{"$f":"IF(OR('Příjemka drobného majetku'!$M$7=5,'Příjemka drobného majetku'!$M$7=9,'Příjemka drobného majetku'!$M$7=13,'Příjemka drobného majetku'!$M$7=17,'Příjemka drobného majetku'!$M$7=21,'Příjemka drobného majetku'!$M$7=24,'Příjemka drobného majetku'!$M$7=28),A15+(C15-D15),IF(OR('Příjemka drobného majetku'!$M$7=4,'Příjemka drobného majetku'!$M$7=8,'Příjemka drobného majetku'!$M$7=12,'Příjemka drobného majetku'!$M$7=16,'Příjemka drobného majetku'!$M$7=20,'Příjemka drobného majetku'!$M$7=23,'Příjemka drobného majetku'!$M$7=27),A15+C15-E15,IF(OR('Příjemka drobného majetku'!$M$7=1,'Příjemka drobného majetku'!$M$7=2,'Příjemka drobného majetku'!$M$7=7,'Příjemka drobného majetku'!$M$7=10,'Příjemka drobného majetku'!$M$7=15,'Příjemka drobného majetku'!$M$7=18,'Příjemka drobného majetku'!$M$7=25),A15+C15,A15)))","v":0},0,{"$f":"'Příjemka drobného majetku'!H21","v":0},0,0]
[{"$f":"'Příjemka drobného majetku'!J22","v":0},null,{"$f":"A16*'Příjemka drobného majetku'!K22","v":0},{"$f":"C16*'Příjemka drobného majetku'!$Q$3*(1-'Příjemka drobného majetku'!$T$3/100)","v":0},{"$f":"C16*(1-'Příjemka drobného majetku'!$T$3/100)","v":0},{"$f":"IF(OR('Příjemka drobného majetku'!$M$7=5,'Příjemka drobného majetku'!$M$7=9,'Příjemka drobného majetku'!$M$7=13,'Příjemka drobného majetku'!$M$7=17,'Příjemka drobného majetku'!$M$7=21,'Příjemka drobného majetku'!$M$7=24,'Příjemka drobného majetku'!$M$7=28),A16+(C16-D16),IF(OR('Příjemka drobného majetku'!$M$7=4,'Příjemka drobného majetku'!$M$7=8,'Příjemka drobného majetku'!$M$7=12,'Příjemka drobného majetku'!$M$7=16,'Příjemka drobného majetku'!$M$7=20,'Příjemka drobného majetku'!$M$7=23,'Příjemka drobného majetku'!$M$7=27),A16+C16-E16,IF(OR('Příjemka drobného majetku'!$M$7=1,'Příjemka drobného majetku'!$M$7=2,'Příjemka drobného majetku'!$M$7=7,'Příjemka drobného majetku'!$M$7=10,'Příjemka drobného majetku'!$M$7=15,'Příjemka drobného majetku'!$M$7=18,'Příjemka drobného majetku'!$M$7=25),A16+C16,A16)))","v":0},0,{"$f":"'Příjemka drobného majetku'!H22","v":0},0,0]
[{"$f":"'Příjemka drobného majetku'!J23","v":0},null,{"$f":"A17*'Příjemka drobného majetku'!K23","v":0},{"$f":"C17*'Příjemka drobného majetku'!$Q$3*(1-'Příjemka drobného majetku'!$T$3/100)","v":0},{"$f":"C17*(1-'Příjemka drobného majetku'!$T$3/100)","v":0},{"$f":"IF(OR('Příjemka drobného majetku'!$M$7=5,'Příjemka drobného majetku'!$M$7=9,'Příjemka drobného majetku'!$M$7=13,'Příjemka drobného majetku'!$M$7=17,'Příjemka drobného majetku'!$M$7=21,'Příjemka drobného majetku'!$M$7=24,'Příjemka drobného majetku'!$M$7=28),A17+(C17-D17),IF(OR('Příjemka drobného majetku'!$M$7=4,'Příjemka drobného majetku'!$M$7=8,'Příjemka drobného majetku'!$M$7=12,'Příjemka drobného majetku'!$M$7=16,'Příjemka drobného majetku'!$M$7=20,'Příjemka drobného majetku'!$M$7=23,'Příjemka drobného majetku'!$M$7=27),A17+C17-E17,IF(OR('Příjemka drobného majetku'!$M$7=1,'Příjemka drobného majetku'!$M$7=2,'Příjemka drobného majetku'!$M$7=7,'Příjemka drobného majetku'!$M$7=10,'Příjemka drobného majetku'!$M$7=15,'Příjemka drobného majetku'!$M$7=18,'Příjemka drobného majetku'!$M$7=25),A17+C17,A17)))","v":0},0,{"$f":"'Příjemka drobného majetku'!H23","v":0},0,0]
[{"$f":"'Příjemka drobného majetku'!J24","v":0},null,{"$f":"A18*'Příjemka drobného majetku'!K24","v":0},{"$f":"C18*'Příjemka drobného majetku'!$Q$3*(1-'Příjemka drobného majetku'!$T$3/100)","v":0},{"$f":"C18*(1-'Příjemka drobného majetku'!$T$3/100)","v":0},{"$f":"IF(OR('Příjemka drobného majetku'!$M$7=5,'Příjemka drobného majetku'!$M$7=9,'Příjemka drobného majetku'!$M$7=13,'Příjemka drobného majetku'!$M$7=17,'Příjemka drobného majetku'!$M$7=21,'Příjemka drobného majetku'!$M$7=24,'Příjemka drobného majetku'!$M$7=28),A18+(C18-D18),IF(OR('Příjemka drobného majetku'!$M$7=4,'Příjemka drobného majetku'!$M$7=8,'Příjemka drobného majetku'!$M$7=12,'Příjemka drobného majetku'!$M$7=16,'Příjemka drobného majetku'!$M$7=20,'Příjemka drobného majetku'!$M$7=23,'Příjemka drobného majetku'!$M$7=27),A18+C18-E18,IF(OR('Příjemka drobného majetku'!$M$7=1,'Příjemka drobného majetku'!$M$7=2,'Příjemka drobného majetku'!$M$7=7,'Příjemka drobného majetku'!$M$7=10,'Příjemka drobného majetku'!$M$7=15,'Příjemka drobného majetku'!$M$7=18,'Příjemka drobného majetku'!$M$7=25),A18+C18,A18)))","v":0},0,{"$f":"'Příjemka drobného majetku'!H24","v":0},0,0]
[{"$f":"'Příjemka drobného majetku'!J25","v":0},null,{"$f":"A19*'Příjemka drobného majetku'!K25","v":0},{"$f":"C19*'Příjemka drobného majetku'!$Q$3*(1-'Příjemka drobného majetku'!$T$3/100)","v":0},{"$f":"C19*(1-'Příjemka drobného majetku'!$T$3/100)","v":0},{"$f":"IF(OR('Příjemka drobného majetku'!$M$7=5,'Příjemka drobného majetku'!$M$7=9,'Příjemka drobného majetku'!$M$7=13,'Příjemka drobného majetku'!$M$7=17,'Příjemka drobného majetku'!$M$7=21,'Příjemka drobného majetku'!$M$7=24,'Příjemka drobného majetku'!$M$7=28),A19+(C19-D19),IF(OR('Příjemka drobného majetku'!$M$7=4,'Příjemka drobného majetku'!$M$7=8,'Příjemka drobného majetku'!$M$7=12,'Příjemka drobného majetku'!$M$7=16,'Příjemka drobného majetku'!$M$7=20,'Příjemka drobného majetku'!$M$7=23,'Příjemka drobného majetku'!$M$7=27),A19+C19-E19,IF(OR('Příjemka drobného majetku'!$M$7=1,'Příjemka drobného majetku'!$M$7=2,'Příjemka drobného majetku'!$M$7=7,'Příjemka drobného majetku'!$M$7=10,'Příjemka drobného majetku'!$M$7=15,'Příjemka drobného majetku'!$M$7=18,'Příjemka drobného majetku'!$M$7=25),A19+C19,A19)))","v":0},0,{"$f":"'Příjemka drobného majetku'!H25","v":0},0,0]
[null,null,null,null,null,{"$f":"IF(OR('Příjemka drobného majetku'!$M$7=5,'Příjemka drobného majetku'!$M$7=9,'Příjemka drobného majetku'!$M$7=13,'Příjemka drobného majetku'!$M$7=17,'Příjemka drobného majetku'!$M$7=21,'Příjemka drobného majetku'!$M$7=24,'Příjemka drobného majetku'!$M$7=28),A20+(C20-D20),IF(OR('Příjemka drobného majetku'!$M$7=4,'Příjemka drobného majetku'!$M$7=8,'Příjemka drobného majetku'!$M$7=12,'Příjemka drobného majetku'!$M$7=16,'Příjemka drobného majetku'!$M$7=20,'Příjemka drobného majetku'!$M$7=23,'Příjemka drobného majetku'!$M$7=27),A20+C20-E20,IF(OR('Příjemka drobného majetku'!$M$7=1,'Příjemka drobného majetku'!$M$7=2,'Příjemka drobného majetku'!$M$7=7,'Příjemka drobného majetku'!$M$7=10,'Příjemka drobného majetku'!$M$7=15,'Příjemka drobného majetku'!$M$7=18,'Příjemka drobného majetku'!$M$7=25),A20+C20,A20)))","v":0}]
[{"$f":"'Příjemka drobného majetku'!I27","v":0},null,{"$f":"A21*'Příjemka drobného majetku'!K27","v":0},{"$f":"C21*'Příjemka drobného majetku'!$Q$3*(1-'Příjemka drobného majetku'!$T$3/100)","v":0},{"$f":"C21*(1-'Příjemka drobného majetku'!$T$3/100)","v":0},{"$f":"IF(OR('Příjemka drobného majetku'!$M$7=5,'Příjemka drobného majetku'!$M$7=9,'Příjemka drobného majetku'!$M$7=13,'Příjemka drobného majetku'!$M$7=17,'Příjemka drobného majetku'!$M$7=21,'Příjemka drobného majetku'!$M$7=24,'Příjemka drobného majetku'!$M$7=28),A21+(C21-D21),IF(OR('Příjemka drobného majetku'!$M$7=4,'Příjemka drobného majetku'!$M$7=8,'Příjemka drobného majetku'!$M$7=12,'Příjemka drobného majetku'!$M$7=16,'Příjemka drobného majetku'!$M$7=20,'Příjemka drobného majetku'!$M$7=23,'Příjemka drobného majetku'!$M$7=27),A21+C21-E21,IF(OR('Příjemka drobného majetku'!$M$7=1,'Příjemka drobného majetku'!$M$7=2,'Příjemka drobného majetku'!$M$7=7,'Příjemka drobného majetku'!$M$7=10,'Příjemka drobného majetku'!$M$7=15,'Příjemka drobného majetku'!$M$7=18,'Příjemka drobného majetku'!$M$7=25),A21+C21,A21)))","v":0},{"$f":"IF($F$26=0,0,F21/$F$26)","v":0},null,0,0]
[{"$f":"'Příjemka drobného majetku'!I28","v":0},null,{"$f":"A22*'Příjemka drobného majetku'!K28","v":0},{"$f":"C22*'Příjemka drobného majetku'!$Q$3*(1-'Příjemka drobného majetku'!$T$3/100)","v":0},{"$f":"C22*(1-'Příjemka drobného majetku'!$T$3/100)","v":0},{"$f":"IF(OR('Příjemka drobného majetku'!$M$7=5,'Příjemka drobného majetku'!$M$7=9,'Příjemka drobného majetku'!$M$7=13,'Příjemka drobného majetku'!$M$7=17,'Příjemka drobného majetku'!$M$7=21,'Příjemka drobného majetku'!$M$7=24,'Příjemka drobného majetku'!$M$7=28),A22+(C22-D22),IF(OR('Příjemka drobného majetku'!$M$7=4,'Příjemka drobného majetku'!$M$7=8,'Příjemka drobného majetku'!$M$7=12,'Příjemka drobného majetku'!$M$7=16,'Příjemka drobného majetku'!$M$7=20,'Příjemka drobného majetku'!$M$7=23,'Příjemka drobného majetku'!$M$7=27),A22+C22-E22,IF(OR('Příjemka drobného majetku'!$M$7=1,'Příjemka drobného majetku'!$M$7=2,'Příjemka drobného majetku'!$M$7=7,'Příjemka drobného majetku'!$M$7=10,'Příjemka drobného majetku'!$M$7=15,'Příjemka drobného majetku'!$M$7=18,'Příjemka drobného majetku'!$M$7=25),A22+C22,A22)))","v":0},{"$f":"IF($F$26=0,0,F22/$F$26)","v":0},null,0,0]
[{"$f":"'Příjemka drobného majetku'!I29","v":0},null,{"$f":"A23*'Příjemka drobného majetku'!K29","v":0},{"$f":"C23*'Příjemka drobného majetku'!$Q$3*(1-'Příjemka drobného majetku'!$T$3/100)","v":0},{"$f":"C23*(1-'Příjemka drobného majetku'!$T$3/100)","v":0},{"$f":"IF(OR('Příjemka drobného majetku'!$M$7=5,'Příjemka drobného majetku'!$M$7=9,'Příjemka drobného majetku'!$M$7=13,'Příjemka drobného majetku'!$M$7=17,'Příjemka drobného majetku'!$M$7=21,'Příjemka drobného majetku'!$M$7=24,'Příjemka drobného majetku'!$M$7=28),A23+(C23-D23),IF(OR('Příjemka drobného majetku'!$M$7=4,'Příjemka drobného majetku'!$M$7=8,'Příjemka drobného majetku'!$M$7=12,'Příjemka drobného majetku'!$M$7=16,'Příjemka drobného majetku'!$M$7=20,'Příjemka drobného majetku'!$M$7=23,'Příjemka drobného majetku'!$M$7=27),A23+C23-E23,IF(OR('Příjemka drobného majetku'!$M$7=1,'Příjemka drobného majetku'!$M$7=2,'Příjemka drobného majetku'!$M$7=7,'Příjemka drobného majetku'!$M$7=10,'Příjemka drobného majetku'!$M$7=15,'Příjemka drobného majetku'!$M$7=18,'Příjemka drobného majetku'!$M$7=25),A23+C23,A23)))","v":0},{"$f":"IF($F$26=0,0,F23/$F$26)","v":0},null,0,0]
[{"$f":"'Příjemka drobného majetku'!I30","v":0},null,{"$f":"A24*'Příjemka drobného majetku'!K30","v":0},{"$f":"C24*'Příjemka drobného majetku'!$Q$3*(1-'Příjemka drobného majetku'!$T$3/100)","v":0},{"$f":"C24*(1-'Příjemka drobného majetku'!$T$3/100)","v":0},{"$f":"IF(OR('Příjemka drobného majetku'!$M$7=5,'Příjemka drobného majetku'!$M$7=9,'Příjemka drobného majetku'!$M$7=13,'Příjemka drobného majetku'!$M$7=17,'Příjemka drobného majetku'!$M$7=21,'Příjemka drobného majetku'!$M$7=24,'Příjemka drobného majetku'!$M$7=28),A24+(C24-D24),IF(OR('Příjemka drobného majetku'!$M$7=4,'Příjemka drobného majetku'!$M$7=8,'Příjemka drobného majetku'!$M$7=12,'Příjemka drobného majetku'!$M$7=16,'Příjemka drobného majetku'!$M$7=20,'Příjemka drobného majetku'!$M$7=23,'Příjemka drobného majetku'!$M$7=27),A24+C24-E24,IF(OR('Příjemka drobného majetku'!$M$7=1,'Příjemka drobného majetku'!$M$7=2,'Příjemka drobného majetku'!$M$7=7,'Příjemka drobného majetku'!$M$7=10,'Příjemka drobného majetku'!$M$7=15,'Příjemka drobného majetku'!$M$7=18,'Příjemka drobného majetku'!$M$7=25),A24+C24,A24)))","v":0},{"$f":"IF($F$26=0,0,F24/$F$26)","v":0},null,0,0]
[{"$f":"'Příjemka drobného majetku'!I31","v":0},null,{"$f":"A25*'Příjemka drobného majetku'!K31","v":0},{"$f":"C25*'Příjemka drobného majetku'!$Q$3*(1-'Příjemka drobného majetku'!$T$3/100)","v":0},{"$f":"C25*(1-'Příjemka drobného majetku'!$T$3/100)","v":0},{"$f":"IF(OR('Příjemka drobného majetku'!$M$7=5,'Příjemka drobného majetku'!$M$7=9,'Příjemka drobného majetku'!$M$7=13,'Příjemka drobného majetku'!$M$7=17,'Příjemka drobného majetku'!$M$7=21,'Příjemka drobného majetku'!$M$7=24,'Příjemka drobného majetku'!$M$7=28),A25+(C25-D25),IF(OR('Příjemka drobného majetku'!$M$7=4,'Příjemka drobného majetku'!$M$7=8,'Příjemka drobného majetku'!$M$7=12,'Příjemka drobného majetku'!$M$7=16,'Příjemka drobného majetku'!$M$7=20,'Příjemka drobného majetku'!$M$7=23,'Příjemka drobného majetku'!$M$7=27),A25+C25-E25,IF(OR('Příjemka drobného majetku'!$M$7=1,'Příjemka drobného majetku'!$M$7=2,'Příjemka drobného majetku'!$M$7=7,'Příjemka drobného majetku'!$M$7=10,'Příjemka drobného majetku'!$M$7=15,'Příjemka drobného majetku'!$M$7=18,'Příjemka drobného majetku'!$M$7=25),A25+C25,A25)))","v":0},{"$f":"IF($F$26=0,0,F25/$F$26)","v":0},null,0,0]
[{"$f":"SUM(A4:A19,A21:A23,)","v":0},null,{"$f":"A26*'Příjemka drobného majetku'!K32","v":0},null,null,{"$f":"SUM(F4:F19)","v":0},{"$f":"SUM(G4:G19)","v":0},{"$f":"SUM(H4:H19)","v":0},{"$f":"SUM(I4:I19,I21:I23,)","v":0}]
[null,null,null,null,null,null,null,null,{"$f":"SUM(F21:F23)/H26","v":{"$error":"#DIV/0!"}}]

{"sheet":"Příjemka drobného majetku","index":2,"n_rows":38,"n_cols":29,"rows_kept":38,"cut":false,"hidden":false,"merged":[[0,0,0,5],[0,7,0,11],[0,12,0,13],[5,7,5,9],[4,0,4,2],[2,12,2,13],[3,0,3,2],[3,12,3,13],[3,3,3,4],[2,0,2,11],[4,3,4,4],[5,11,5,13],[32,12,34,12],[32,6,32,7],[33,6,33,7],[34,6,34,7],[32,0,32,1],[33,8,34,8],[33,11,34,11],[33,9,34,9],[34,0,34,1],[33,10,34,10],[30,4,30,5],[5,0,5,3],[6,4,6,6],[7,0,7,1],[6,0,6,3],[12,0,12,1],[24,2,24,5],[18,0,18,1],[7,2,7,5],[8,0,8,3],[7,6,8,6],[9,0,9,1],[10,0,10,1],[11,0,11,1],[14,2,14,5],[14,0,14,1],[31,7,31,10],[33,0,33,1],[7,13,8,13],[21,0,21,1],[29,4,29,5],[19,2,19,5],[29,0,29,1],[21,2,21,5],[24,0,24,1],[26,4,26,7],[27,4,27,7],[28,4,28,7],[20,2,20,5],[23,2,23,5],[22,2,22,5],[25,2,25,5],[6,7,6,9],[7,8,8,8],[15,2,15,5],[23,0,23,1],[19,0,19,1],[11,2,11,5],[17,2,17,5],[20,0,20,1],[16,0,16,1],[17,0,17,1],[13,0,13,1],[15,0,15,1],[13,2,13,5],[12,2,12,5],[7,7,8,7],[9,2,9,5],[27,13,29,13],[18,2,18,5],[22,0,22,1],[16,2,16,5],[7,11,8,11],[10,2,10,5],[26,2,26,3],[27,2,27,3],[28,2,29,3]]}
[null,null,null,null,null,null,null,null,null,null,null,null,"vyplňujte pouze modré buňky",null,null,null,null,null,null,null,null,null,null,null,null,null,"Kód DPH","Název","Nárok na odpočet"]
[]
["                                                 PŘÍJEMKA - DROBNÉHO MAJETKU",null,null,null,null,null,null,null,null,null,null,null," Číslo příjemky v rámci fakulty (FF/xxxx/RR)",null,null,"poměrový koeficient",0.12,null,"Krátící koeficient",49,null,null,null,null,null,1,"21VB 21% vstup bez nároku"]
["Pracoviště:(FFSSKK)",null,null,"Interní číslo příjemky",null,null,null,null,null,null,null,null,null,null,null,null,null,null,null,null,null,null,null,null,null,2,"00VO 0% vstup osvobozeno"]
[null,null,null,null,null,null,null,null,null,null,null,null,null,null,null,null,null,null,null,null,null,null,null,null,null,3,"-21TP přijaté v tuzemsku plný nárok 21% (ř.40)"]
["Záv. (ZAV/xxxx/xxxx/RR)*, pokl (POK/xxxx/xxxx/RR),sklad (SKL/xxxx/xx/xxxx/RR),man (MAN/xxxx/xxxx/RR)",null,null,null,"Variabilní symbol*",null,null,"Číslo objednávky:",null,null," Dodavatel:",null,null,null,null,null,null,null,null,null,null,null,null,null,null,4,"-21TK přijaté v tuzemsku krác. nárok 21% (ř.40)"]
[null,null,null,null,null,null,null,null,null,null,null,null,5,null,null,null,null,null,null,null,null,null,null,null,null,5,"-21TK% POMĚR přijaté v tuz. krác. nárok 21% (ř.40)"]
["Typ majetku",null," Název",null,null,null,"MJ","Množství ","Cena za MJ bez DPH","Cena po slevě","Sazba","DPH za kus","Evidenční cena","Evidenční číslo",null,null,null,null,null,null,null,null,null,null,null,6,"-21EZP pořízení zboží z EU 21% plný (ř. 3 a 43)"]
[1,null,null,null,null,null,null,null,null,null,"DPH",null,null,null,null,null,null,null,null,null,null,null,null,null,null,7,"21EZPB pořízení zboží z EU 21% bez odpočtu (ř. 3)"]
[null,null,null,null,null,null,"ks",null,null,{"$f":"IF($H$31<>0,I10-I10*$H$31,I10)","v":0},{"$f":"IF(OR($M$7=1,$M$7=2,$M$7=7,$M$7=10,$M$7=15,$M$7=18,$M$7=25),LEFT(VLOOKUP($M$7,$Z$3:$AA$30,2,FALSE),2)/100,RIGHT(LEFT(VLOOKUP($M$7,$Z$3:$AA$30,2,FALSE),3),2)/100)","v":0.21},{"$f":"IF(OR($M$7=9,$M$7=10,$M$7=11),0,IF(OR($M$7=6,$M$7=7,$M$7=16,$M$7=17),(výpočty!B4*(1-'Příjemka drobného majetku'!$T$3/100))/10,IF(OR($M$7=12,$M$7=2),výpočty!A4*K10*(1-$T$3/100),IF(OR($M$7=3,$M$7=13),výpočty!A4*K10*$Q$3*(1-$T$3/100),IF($M$7=1,0,výpočty!A4*K10)))))","v":0},{"$f":"IF(I10=0,0,výpočty!J4)","v":0},null,{"$f":"IF(ISERR(H10*M10),0,H10*M10)","v":0},null,null,null,null,null,null,null,null,null,null,8,"-21EZK pořízení zboží z EU 21% krác. (ř. 3 a 43)"]
[null,null,null,null,null,null,"ks",null,null,{"$f":"IF($H$31<>0,I11-I11*$H$31,I11)","v":0},{"$f":"IF(OR($M$7=1,$M$7=2,$M$7=7,$M$7=10,$M$7=15,$M$7=18,$M$7=25),LEFT(VLOOKUP($M$7,$Z$3:$AA$30,2,FALSE),2)/100,RIGHT(LEFT(VLOOKUP($M$7,$Z$3:$AA$30,2,FALSE),3),2)/100)","v":0.21},{"$f":"IF(OR($M$7=9,$M$7=10,$M$7=11),0,IF(OR($M$7=6,$M$7=7,$M$7=16,$M$7=17),(výpočty!B5*(1-'Příjemka drobného majetku'!$T$3/100))/10,IF(OR($M$7=12,$M$7=2),výpočty!A5*K11*(1-$T$3/100),IF(OR($M$7=3,$M$7=13),výpočty!A5*K11*$Q$3*(1-$T$3/100),IF($M$7=1,0,výpočty!A5*K11)))))","v":0},{"$f":"IF(I11=0,0,výpočty!J5)","v":0},null,0,null,null,null,null,null,null,null,null,null,null,9,"-21EZK% POMĚR poříz. zboží z EU 21% krác. (ř.3 a 43)"]
[null,null,null,null,null,null,"ks",null,null,0,0.21,{"$f":"IF(OR($M$7=9,$M$7=10,$M$7=11),0,IF(OR($M$7=6,$M$7=7,$M$7=16,$M$7=17),(výpočty!B6*(1-'Příjemka drobného majetku'!$T$3/100))/10,IF(OR($M$7=12,$M$7=2),výpočty!A6*K12*(1-$T$3/100),IF(OR($M$7=3,$M$7=13),výpočty!A6*K12*$Q$3*(1-$T$3/100),IF($M$7=1,0,výpočty!A6*K12)))))","v":0},{"$f":"IF(I12=0,0,výpočty!J6)","v":0},null,0,null,null,null,null,null,null,null,null,null,null,10,"21STB přij.staveb.práce 21% bez odpočtu (ř. 10)"]
[null,null,null,null,null,null,"ks",null,null,0,0.21,{"$f":"IF(OR($M$7=9,$M$7=10,$M$7=11),0,IF(OR($M$7=6,$M$7=7,$M$7=16,$M$7=17),(výpočty!B7*(1-'Příjemka drobného majetku'!$T$3/100))/10,IF(OR($M$7=12,$M$7=2),výpočty!A7*K13*(1-$T$3/100),IF(OR($M$7=3,$M$7=13),výpočty!A7*K13*$Q$3*(1-$T$3/100),IF($M$7=1,0,výpočty!A7*K13)))))","v":0},{"$f":"IF(I13=0,0,výpočty!J7)","v":0},null,0,null,null,null,null,null,null,null,null,null,null,11,"-21STP přij.staveb.práce 21% plný (ř. 10 a 43)"]
[null,null,null,null,null,null,"ks",null,null,0,0.21,{"$f":"IF(OR($M$7=9,$M$7=10,$M$7=11),0,IF(OR($M$7=6,$M$7=7,$M$7=16,$M$7=17),(výpočty!B8*(1-'Příjemka drobného majetku'!$T$3/100))/10,IF(OR($M$7=12,$M$7=2),výpočty!A8*K14*(1-$T$3/100),IF(OR($M$7=3,$M$7=13),výpočty!A8*K14*$Q$3*(1-$T$3/100),IF($M$7=1,0,výpočty!A8*K14)))))","v":0},{"$f":"IF(I14=0,0,výpočty!J8)","v":0},null,0,null,null,null,null,null,null,null,null,null,null,12,"-21STK přij.staveb.práce 21% krácený (ř. 10 a 43)"]
[null,null,null,null,null,null,"ks",null,null,0,0.21,{"$f":"IF(OR($M$7=9,$M$7=10,$M$7=11),0,IF(OR($M$7=6,$M$7=7,$M$7=16,$M$7=17),(výpočty!B9*(1-'Příjemka drobného majetku'!$T$3/100))/10,IF(OR($M$7=12,$M$7=2),výpočty!A9*K15*(1-$T$3/100),IF(OR($M$7=3,$M$7=13),výpočty!A9*K15*$Q$3*(1-$T$3/100),IF($M$7=1,0,výpočty!A9*K15)))))","v":0},{"$f":"IF(I15=0,0,výpočty!J9)","v":0},null,0,null,null,null,null,null,null,null,null,null,null,13,"-21STK% POMĚR přij.staveb.práce 21% krác. (ř. 10a43)"]
[null,null,null,null,null,null,"ks",null,null,0,0.21,{"$f":"IF(OR($M$7=9,$M$7=10,$M$7=11),0,IF(OR($M$7=6,$M$7=7,$M$7=16,$M$7=17),(výpočty!B10*(1-'Příjemka drobného majetku'!$T$3/100))/10,IF(OR($M$7=12,$M$7=2),výpočty!A10*K16*(1-$T$3/100),IF(OR($M$7=3,$M$7=13),výpočty!A10*K16*$Q$3*(1-$T$3/100),IF($M$7=1,0,výpočty!A10*K16)))))","v":0},{"$f":"IF(I16=0,0,výpočty!J10)","v":0},null,0,null,null,null,null,null,null,null,null,null,null,14,"-21OSP služby,zboží od osob neusaz.v tuzem. 21% plný (ř.12a43)"]
[null,null,null,null,null,null,"ks",null,null,0,0.21,{"$f":"IF(OR($M$7=9,$M$7=10,$M$7=11),0,IF(OR($M$7=6,$M$7=7,$M$7=16,$M$7=17),(výpočty!B11*(1-'Příjemka drobného majetku'!$T$3/100))/10,IF(OR($M$7=12,$M$7=2),výpočty!A11*K17*(1-$T$3/100),IF(OR($M$7=3,$M$7=13),výpočty!A11*K17*$Q$3*(1-$T$3/100),IF($M$7=1,0,výpočty!A11*K17)))))","v":0},{"$f":"IF(I17=0,0,výpočty!J11)","v":0},null,0,null,null,null,null,null,null,null,null,null,null,15,"21OSPB služby,zboží od osob neusaz.v tuzem. 21% bez odp(ř.12)"]
[null,null,null,null,null,null,"ks",null,null,0,0.21,{"$f":"IF(OR($M$7=9,$M$7=10,$M$7=11),0,IF(OR($M$7=6,$M$7=7,$M$7=16,$M$7=17),(výpočty!B12*(1-'Příjemka drobného majetku'!$T$3/100))/10,IF(OR($M$7=12,$M$7=2),výpočty!A12*K18*(1-$T$3/100),IF(OR($M$7=3,$M$7=13),výpočty!A12*K18*$Q$3*(1-$T$3/100),IF($M$7=1,0,výpočty!A12*K18)))))","v":0},{"$f":"IF(I18=0,0,výpočty!J12)","v":0},null,0,null,null,null,null,null,null,null,null,null,null,16,"-21OSK služby,zboží od osob neusaz.v tuzem. 21% krác. (ř. 12a43)"]
[null,null,null,null,null,null,"ks",null,null,0,0.21,{"$f":"IF(OR($M$7=9,$M$7=10,$M$7=11),0,IF(OR($M$7=6,$M$7=7,$M$7=16,$M$7=17),(výpočty!B13*(1-'Příjemka drobného majetku'!$T$3/100))/10,IF(OR($M$7=12,$M$7=2),výpočty!A13*K19*(1-$T$3/100),IF(OR($M$7=3,$M$7=13),výpočty!A13*K19*$Q$3*(1-$T$3/100),IF($M$7=1,0,výpočty!A13*K19)))))","v":0},{"$f":"IF(I19=0,0,výpočty!J13)","v":0},null,0,null,null,null,null,null,null,null,null,null,null,17,"-21OSK% POMĚR služby,zboží od osob neusaz.v tuzem 21% krác.(ř.12a43)"]
[null,null,null,null,null,null,"ks",null,null,0,0.21,{"$f":"IF(OR($M$7=9,$M$7=10,$M$7=11),0,IF(OR($M$7=6,$M$7=7,$M$7=16,$M$7=17),(výpočty!B14*(1-'Příjemka drobného majetku'!$T$3/100))/10,IF(OR($M$7=12,$M$7=2),výpočty!A14*K20*(1-$T$3/100),IF(OR($M$7=3,$M$7=13),výpočty!A14*K20*$Q$3*(1-$T$3/100),IF($M$7=1,0,výpočty!A14*K20)))))","v":0},{"$f":"IF(I20=0,0,výpočty!J14)","v":0},null,0,null,null,null,null,null,null,null,null,null,null,18,"21OZ dovoz zboží  21 % (ř. 7)"]
[null,null,null,null,null,null,"ks",null,null,0,0.21,{"$f":"IF(OR($M$7=9,$M$7=10,$M$7=11),0,IF(OR($M$7=6,$M$7=7,$M$7=16,$M$7=17),(výpočty!B15*(1-'Příjemka drobného majetku'!$T$3/100))/10,IF(OR($M$7=12,$M$7=2),výpočty!A15*K21*(1-$T$3/100),IF(OR($M$7=3,$M$7=13),výpočty!A15*K21*$Q$3*(1-$T$3/100),IF($M$7=1,0,výpočty!A15*K21)))))","v":0},{"$f":"IF(I21=0,0,výpočty!J15)","v":0},null,0,null,null,null,null,null,null,null,null,null,null,19,"-21OZP dovoz zboží 21% plný (ř. 7 a 43)"]
[null,null,null,null,null,null,"ks",null,null,0,0.21,{"$f":"IF(OR($M$7=9,$M$7=10,$M$7=11),0,IF(OR($M$7=6,$M$7=7,$M$7=16,$M$7=17),(výpočty!B16*(1-'Příjemka drobného majetku'!$T$3/100))/10,IF(OR($M$7=12,$M$7=2),výpočty!A16*K22*(1-$T$3/100),IF(OR($M$7=3,$M$7=13),výpočty!A16*K22*$Q$3*(1-$T$3/100),IF($M$7=1,0,výpočty!A16*K22)))))","v":0},{"$f":"IF(I22=0,0,výpočty!J16)","v":0},null,0,null,null,null,null,null,null,null,null,null,null,20,"-21OZK dovoz zboží 21% krác. (ř. 7 a 43)"]
[null,null,null,null,null,null,"ks",null,null,0,0.21,{"$f":"IF(OR($M$7=9,$M$7=10,$M$7=11),0,IF(OR($M$7=6,$M$7=7,$M$7=16,$M$7=17),(výpočty!B17*(1-'Příjemka drobného majetku'!$T$3/100))/10,IF(OR($M$7=12,$M$7=2),výpočty!A17*K23*(1-$T$3/100),IF(OR($M$7=3,$M$7=13),výpočty!A17*K23*$Q$3*(1-$T$3/100),IF($M$7=1,0,výpočty!A17*K23)))))","v":0},{"$f":"IF(I23=0,0,výpočty!J17)","v":0},null,0,null,null,null,null,null,null,null,null,null,null,21,"-21OZK% POMĚR dovoz zboží 21% krác. (ř.7 a  43)"]
[null,null,null,null,null,null,"ks",null,null,0,0.21,{"$f":"IF(OR($M$7=9,$M$7=10,$M$7=11),0,IF(OR($M$7=6,$M$7=7,$M$7=16,$M$7=17),(výpočty!B18*(1-'Příjemka drobného majetku'!$T$3/100))/10,IF(OR($M$7=12,$M$7=2),výpočty!A18*K24*(1-$T$3/100),IF(OR($M$7=3,$M$7=13),výpočty!A18*K24*$Q$3*(1-$T$3/100),IF($M$7=1,0,výpočty!A18*K24)))))","v":0},{"$f":"IF(I24=0,0,výpočty!J18)","v":0},null,0,null,null,null,null,null,null,null,null,null,null,22,"-21TLP přij.mob.telefony 21% plný (ř. 10 a 43)"]
[null,null,null,null,null,null,"ks",null,null,0,0.21,{"$f":"IF(OR($M$7=9,$M$7=10,$M$7=11),0,IF(OR($M$7=6,$M$7=7,$M$7=16,$M$7=17),(výpočty!B19*(1-'Příjemka drobného majetku'!$T$3/100))/10,IF(OR($M$7=12,$M$7=2),výpočty!A19*K25*(1-$T$3/100),IF(OR($M$7=3,$M$7=13),výpočty!A19*K25*$Q$3*(1-$T$3/100),IF($M$7=1,0,výpočty!A19*K25)))))","v":0},{"$f":"IF(I25=0,0,výpočty!J19)","v":0},null,0,null,null,null,null,null,null,null,null,null,null,23,"-21TLK přij.mob.telefony 21% krácený (ř. 10 a 43)"]
[null,null,null,null,null,null,null,null,null,null,null,null,null,null,null,null,null,null,null,null,null,null,null,null,null,24,"-21TLK% POMĚR přij.mob.telefony  21% krác. (ř. 10a43)"]
[null,null,null,null,"Montáž celkem:",null,null,null,null,null,0.21,null,null,null,null,null,null,null,null,null,null,null,null,null,null,25,"21PZB přij. NTB,tablety 21% bez odpočtu (ř.10)"]
[null,null,null,null,"Doprava celkem:",null,null,null,null,null,0.21,null,null,"Evidenční cena celkem",null,null,null,null,null,null,null,null,null,null,null,26,"-21PZP přij.NTB, tablety  21% plný (ř. 10 a 43)"]
[null,null,null,null,"Ostatní celkem:",null,null,null,null,null,0.21,null,null,null,null,null,null,null,null,null,null,null,null,null,null,27,"-21PZK přij.NTB, tablety  21% krácený (ř. 10 a 43)"]
[null,null,null,null,null,null,null,{"$f":"IF(AND(H31<>0,K31<>0),\"Nelze zadat současně % i částku!!!\",\" \")","v":" "},null,null,null,null,null,null,null,null,null,null,null,null,null,null,null,null,null,28,"-21PZK% POMĚR přij.NTB, tablety  21% krác. (ř. 10a43)"]
[null,null,null,null,"Sleva zadaná:",null,"v %",0,null,null,null,null,null,{"$f":"SUM(O10:O25)","v":0}]
[]
["Vyhotovil: ",null,null,"Přijal:",null,"Schválil:",null,null,"Datum zařazení:",null,null,null,"Datum zaúčtování"]
["Dne:",null,null,"Datum dodání",null,"Dne:",null,null,"Datum zavedení do evidence:"]
["Podpis: ",null,null,"Podpis:",null,"Podpis: "]
["*) Vyplňuje se buď \"Závazek\" nebo \"Variabilní symbol\"",null,null,null,null,null,null,"Před vymazáním formuláře"]
[null,null,null,null,null,null,null,"\"Příjemku\"uložte!!!!!"]
[null,null,null,null,null,null,null,null,null,null,"Poznámka: Příjemku tiskněte ve 4 vyhotoveních"]

{"sheet":"Evidenční list","index":3,"n_rows":5,"n_cols":20,"rows_kept":5,"cut":false,"hidden":false,"merged":[[2,0,4,0],[2,5,4,5],[2,6,4,6],[2,3,4,3],[2,4,4,4],[0,2,0,9],[1,2,1,9],[2,7,4,7],[2,9,4,9],[2,1,4,1]]}
[null,null,"                  PŘÍJEMKA - DROBNÉHO MAJETKU - UMÍSTĚNÍ, OSOBA"]
[null,null,"* Pro určení budovy a místnosti použijte číselník na Inetu Přehled budov a místností MU a prac. u osoby vyplňte, jen pokud je různé od prac. na příjemce"]
["Typ maj.","Evidenční číslo",null,"Evidenční cena","Výrobní číslo","Umístění budova*","Zkratka","Číslo místnosti","Osoba","Schválil podpis",null,null,null,null,null,null,0.12,null,null,48]
[null,null,"Název",null,null,null,null," místnosti","Jméno, příjmení"]
[null,null,null,null,null,null,null,null,"Pracoviště"]

{"sheet":"List1","index":4,"n_rows":2,"n_cols":15,"rows_kept":2,"cut":false,"hidden":false,"merged":[]}
[123,"21STB","přij.staveb.práce 21% bez odpočtu (ř. 10)","Přijaté",21,"Pouze základ","A","343","210","nezahrnuje se",null,null,null,"4 - Stavební práce","2013-01-01"]
[127,"-21STK%","POMĚR přij.staveb.práce 21% krác. (ř. 10a43)","Přijaté",21,"Pouze základ","A","343","210","krácený s poměrem","343","343",null,"4 - Stavební práce","2013-01-01"]

{"sheet":"kódy DPH","index":5,"n_rows":109,"n_cols":19,"rows_kept":109,"cut":false,"hidden":true,"merged":[]}
["Pořadí","Kód DPH","Název","Směr pohybu","Skupina DPH","% DPH","Způsob použití","Povinnost přiznat daň","SÚ","AÚ","Nárok na odpočet","SÚ pro odpočet","AÚ pro odpočet","Kód souhrnného hlášení","Kód přemětu plnění","Kód režimu plnění","Platnost od","Platnost do"," Sazba DPH  pro tisk"]
[8,"21VB","21% vstup bez nároku","Přijaté","Tuzemsko",21,"Základ+DPH","N",null,null,"bez odpočtu",null,null,null,null,null,"2013-01-01"]
[8,"VO","0% vstup odsvobozeno","Přijaté","Tuzemsko",0,"Pouze základ","N",null,null,"bez odpočtu",null,null,null,null,null,"2016-01-01"]
[101,"-21TP","přijaté v tuzemsku plný nárok 21% (ř.40)","Přijaté","Tuzemsko",21,"Základ+DPH","N",null,null,"plný","343","340",null,null,null,"2013-01-01"]
[102,"-21TK","přijaté v tuzemsku krác. nárok 21% (ř.40)","Přijaté","Tuzemsko",21,"Základ+DPH","N",null,null,"krácený","343","340",null,null,null,"2013-01-01"]
[103,"-21TK%","POMĚR přijaté v tuz. krác. nárok 21% (ř.40)","Přijaté","Tuzemsko",21,"Základ+DPH","N",null,null,"krácený s poměrem","343","340",null,null,null,"2013-01-01"]
[107,"-21EZP","pořízení zboží z EU 21% plný (ř. 3 a 43)","Přijaté"," EU",21,"Pouze základ","A","343","203","plný","343","343",null,null,null,"2013-01-01"]
[108,"21EZPB","pořízení zboží z EU 21% bez odpočtu (ř. 3)","Přijaté"," EU",21,"Pouze základ","A","343","203","nezahrnuje se",null,null,null,null,null,"2013-01-01"]
[109,"-21EZK","pořízení zboží z EU 21% krác. (ř. 3 a 43)","Přijaté"," EU",21,"Pouze základ","A","343","203","krácený","343","343",null,null,null,"2013-01-01"]
[110,"-21EZK%","POMĚR poříz. zboží z EU 21% krác. (ř.3 a 43)","Přijaté"," EU",21,"Pouze základ","A","343","203","krácený s poměrem","343","343",null,null,null,"2013-01-01"]
[123,"21STB","přij.staveb.práce 21% bez odpočtu (ř. 10)","Přijaté","RCH",21,"Pouze základ","A","343","210","nezahrnuje se",null,null,null,"4 - Stavební práce",null,"2013-01-01"]
[125,"-21STP","přij.staveb.práce 21% plný (ř. 10 a 43)","Přijaté","RCH",21,"Pouze základ","A","343","210","plný","343","343",null,"4 - Stavební práce",null,"2013-01-01"]
[126,"-21STK","přij.staveb.práce 21% krácený (ř. 10 a 43)","Přijaté","RCH",21,"Pouze základ","A","343","210","krácený","343","343",null,"4 - Stavební práce",null,"2013-01-01"]
[127,"-21STK%","POMĚR přij.staveb.práce 21% krác. (ř. 10a43)","Přijaté","RCH",21,"Pouze základ","A","343","210","krácený s poměrem","343","343",null,"4 - Stavební práce",null,"2013-01-01"]
[131,"-21OSP","služby,zboží od osob neusaz.v tuzem. 21% plný (ř.12a43)","Přijaté","Ostatní",21,"Pouze základ","A","343","212","plný","343","343",null,null,null,"2013-01-01"]
[132,"21OSPB","služby,zboží od osob neusaz.v tuzem. 21% bez odp(ř.12)","Přijaté","Ostatní",21,"Pouze základ","A","343","212","nezahrnuje se",null,null,null,null,null,"2013-01-01"]
[133,"-21OSK","služby,zboží od osob neusaz.v tuzem. 21% krác. (ř. 12a43)","Přijaté","Ostatní",21,"Pouze základ","A","343","212","krácený","343","343",null,null,null,"2013-01-01"]
[134,"-21OSK%","POMĚR služby,zboží od osob neusaz.v tuzem 21% krác.(ř.12a43)","Přijaté","Ostatní",21,"Pouze základ","A","343","212","krácený s poměrem","343","343",null,null,null,"2013-01-01"]
[139,"+21OZ","dovoz zboží  21 % (ř. 7)","Přijaté","Ostatní",21,"Pouze základ","A","343","207","nezahrnuje se",null,null,null,null,null,"2013-01-01"]
[140,"-21OZP","dovoz zboží 21% plný (ř. 7 a 43)","Přijaté","Ostatní",21,"Pouze základ","A","343","207","plný","343","343",null,null,null,"2016-01-01"]
[141,"-21OZK","dovoz zboží 21% krác. (ř. 7 a 43)","Přijaté","Ostatní",21,"Pouze základ","A","343","207","krácený","343","343",null,null,null,"2016-01-01"]
[142,"-21OZK%","POMĚR dovoz zboží 21% krác. (ř.7 a  43)","Přijaté","Ostatní",21,"Pouze základ","A","343","207","krácený s poměrem","343","343",null,null,null,"2016-01-01"]
[360,"-21TLP","přij.mob.telefony 21% plný (ř. 10 a 43)","Přijaté","RCH",21,"Pouze základ","A","343","210","plný","343","343",null,"14 - Mobilní telefony",null,"2015-04-01"]
[361,"-21TLK","přij.mob.telefony 21% krácený (ř. 10 a 43)","Přijaté","RCH",21,"Pouze základ","A","343","210","krácený","343","343",null,"14 - Mobilní telefony",null,"2015-04-01"]
[362,"-21TLK%","POMĚR přij.mob.telefony  21% krác. (ř. 10a43)","Přijaté","RCH",21,"Pouze základ","A","343","210","krácený s poměrem","343","343",null,"14 - Mobilní telefony",null,"2015-04-01"]
[363,"21PZB","přij. NTB,tablety 21% bez odpočtu (ř.10)","Přijaté","RCH",21,"Pouze základ","A","343","210","nezahrnuje se",null,null,null,"16 - Přenosná zařízení pro automatizované zpracování dat",null,"2015-04-01"]
[363,"-21PZP","přij.NTB, tablety  21% plný (ř. 10 a 43)","Přijaté","RCH",21,"Pouze základ","A","343","210","plný","343","343",null,"16 - Přenosná zařízení pro automatizované zpracování dat",null,"2015-04-01"]
[364,"-21PZK","přij.NTB, tablety  21% krácený (ř. 10 a 43)","Přijaté","RCH",21,"Pouze základ","A","343","210","krácený","343","343",null,"16 - Přenosná zařízení pro automatizované zpracování dat",null,"2015-04-01"]
[365,"-21PZK%","POMĚR přij.NTB, tablety  21% krác. (ř. 10a43)","Přijaté","RCH",21,"Pouze základ","A","343","210","krácený s poměrem","343","343",null,"16 - Přenosná zařízení pro automatizované zpracování dat",null,"2015-04-01"]
[8,"15VB","15% vstup bez nároku","Přijaté","Tuzemsko",15,"Základ+DPH","N",null,null,"bez odpočtu",null,null,null,null,null,"2016-01-01"]
[8,"10VB","10% vstup bez nároku","Přijaté","Tuzemsko",10,"Základ+DPH","N",null,null,"bez odpočtu",null,null,null,null,null,"2016-01-01"]
[104,"-15TP","přijaté v tuzemsku plný nárok 15% (ř.41)","Přijaté","Tuzemsko",15,"Základ+DPH","N",null,null,"plný","343","341",null,null,null,"2013-01-01"]
[105,"-15TK","přijaté v tuzemsku krác. nárok 15% (ř.41)","Přijaté","Tuzemsko",15,"Základ+DPH","N",null,null,"krácený","343","341",null,null,null,"2013-01-01"]
[105,"-10TP","přijaté v tuzemsku plný nárok 10% (ř.41)","Přijaté","Tuzemsko",10,"Základ+DPH","N",null,null,"plný","343","341",null,null,null,"2015-01-01"]
[106,"-15TK%","POMĚR přijaté v tuz. krác. nárok 15% (ř.41)","Přijaté","Tuzemsko",15,"Základ+DPH","N",null,null,"krácený s poměrem","343","341",null,null,null,"2013-01-01"]
[106,"-10TK","přijaté v tuzemsku krác. nárok 10% (ř.41)","Přijaté","Tuzemsko",10,"Základ+DPH","N",null,null,"krácený","343","341",null,null,null,"2015-01-01"]
[107,"-10TK%","POMĚR přijaté v tuz. krác. nárok 10% (ř.41)","Přijaté","Tuzemsko",10,"Základ+DPH","N",null,null,"krácený s poměrem","343","341",null,null,null,"2015-01-01"]
[111,"-15EZP","pořízení zboží z EU 15% plný (ř. 4 a 44)","Přijaté"," EU",15,"Pouze základ","A","343","204","plný","343","344",null,null,null,"2013-01-01"]
[112,"15EZPB","pořízení zboží z EU 15% bez odpočtu (ř.4)","Přijaté"," EU",15,"Pouze základ","A","343","204","nezahrnuje se",null,null,null,null,null,"2013-01-01"]
[112,"-10EZP","pořízení zboží z EU 10% plný (ř. 4 a 44)","Přijaté"," EU",10,"Pouze základ","A","343","204","plný","343","344",null,null,null,"2015-01-01"]
[113,"-15EZK","pořízení zboží z EU 15% krác. (ř.4 a 44)","Přijaté"," EU",15,"Pouze základ","A","343","204","krácený","343","344",null,null,null,"2013-01-01"]
[113,"10EZPB","pořízení zboží z EU 10% bez odpočtu (ř.4)","Přijaté"," EU",10,"Pouze základ","A","343","204","nezahrnuje se",null,null,null,null,null,"2015-01-01"]
[114,"-15EZK%","POMĚR poříz. zboží z EU 15% krác. (ř.4 a 44)","Přijaté"," EU",15,"Pouze základ","A","343","204","krácený s poměrem","343","344",null,null,null,"2013-01-01"]
[114,"-10EZK","pořízení zboží z EU 10% krác. (ř.4 a 44)","Přijaté"," EU",10,"Pouze základ","A","343","204","krácený","343","344",null,null,null,"2015-01-01"]
[115,"-21ESP","přijetí služby z EU  os.reg. 21% plný (ř. 5 a 43)","Přijaté"," EU",21,"Pouze základ","A","343","205","plný","343","343",null,null,null,"2013-01-01"]
[115,"-10EZK%","POMĚR poříz. zboží z EU 10% krác. (ř.4 a 44)","Přijaté"," EU",10,"Pouze základ","A","343","204","krácený s poměrem","343","344",null,null,null,"2015-01-01"]
[116,"21ESPB","přijetí služby z EU os. reg. 21% (ř. 5)","Přijaté"," EU",21,"Pouze základ","A","343","205","nezahrnuje se",null,null,null,null,null,"2013-01-01"]
[117,"-21ESK","přijetí služby z EU os.reg. 21% krác. (ř. 5 a 43)","Přijaté"," EU",21,"Pouze základ","A","343","205","krácený","343","343",null,null,null,"2013-01-01"]
[118,"-21ESK%","POMĚR přijetí služby z EU os.reg. 21% krác.(ř.5 a 43)","Přijaté"," EU",21,"Pouze základ","A","343","205","krácený s poměrem","343","343",null,null,null,"2013-01-01"]
[119,"-15ESP","přijetí služby z EU os.reg.15% plný (ř. 6 a 44)","Přijaté"," EU",15,"Pouze základ","A","343","206","plný","343","344",null,null,null,"2013-01-01"]
[120,"15ESPB","přij. služby z EU os. reg. 15% bez odpočtu (ř. 6)","Přijaté"," EU",15,"Pouze základ","A","343","206","nezahrnuje se",null,null,null,null,null,"2013-01-01"]
[121,"-15ESK","přij. služby z EU os.reg. 15% krác. (ř. 6 a 44)","Přijaté"," EU",15,"Pouze základ","A","343","206","krácený","343","344",null,null,null,"2013-01-01"]
[122,"-15ESK%","POMĚR přij.služby z EU os.reg. 15% krác.(ř.6 a 44)","Přijaté"," EU",15,"Pouze základ","A","343","206","krácený s poměrem","343","344",null,null,null,"2013-01-01"]
[124,"21ZLB","přij.nákup zlata21% bez odpočtu (ř. 10)","Přijaté","RCH",21,"Pouze základ","A","343","210","nezahrnuje se",null,null,null,"1 - Dodání zlata",null,"2014-01-01"]
[125,"15STB","přij.staveb.práce 15% bez odpočtu (ř. 11)","Přijaté","RCH",15,"Pouze základ","A","343","211","nezahrnuje se",null,null,null,"4 - Stavební práce",null,"2013-01-01"]
[128,"-15STP","přij.staveb.práce 15% plný  (ř. 11 a 44)","Přijaté","RCH",15,"Pouze základ","A","343","211","plný","343","344",null,"4 - Stavební práce",null,"2013-01-01"]
[129,"-15STK","přij.staveb.práce 15% krácený  (ř. 11 a 44)","Přijaté","RCH",15,"Pouze základ","A","343","211","krácený","343","344",null,"4 - Stavební práce",null,"2013-01-01"]
[130,"-15STK%","POMĚR přij.staveb.práce 15% krác. (ř. 11 a 44)","Přijaté","RCH",15,"Pouze základ","A","343","211","krácený s poměrem","343","344",null,"4 - Stavební práce",null,"2013-01-01"]
[135,"-15OSP","služby,zboží od osob neusaz.v tuzem.15% plný (ř. 13 a 44)","Přijaté","Ostatní",15,"Pouze základ","A","343","213","plný","343","344",null,null,null,"2013-01-01"]
[136,"15OSPB","služby,zboží od osob neusaz.v tuzem.15% bez odpočtu (ř.13)","Přijaté","Ostatní",15,"Pouze základ","A","343","213","nezahrnuje se",null,null,null,null,null,"2013-01-01"]
[137,"-15OSK","služby,zboží od osob neusaz.v tuzem. 15% krác. (ř.13a44)","Přijaté","Ostatní",15,"Pouze základ","A","343","213","krácený","343","344",null,null,null,"2013-01-01"]
[138,"-15OSK%","POMĚR služby,zboží od osob neusaz.v tuz. 15% krác.(ř.13a44)","Přijaté","Ostatní",15,"Pouze základ","A","343","213","krácený s poměrem","343","344",null,null,null,"2013-01-01"]
[143,"+15OZ","dovoz zboží 15% (ř. 8)","Přijaté","Ostatní",15,"Pouze základ","A","343","208","nezahrnuje se",null,null,null,null,null,"2013-01-01"]
[144,"+10OZ","dovoz zboží 10% (ř. 8)","Přijaté","Ostatní",10,"Pouze základ","A","343","208","nezahrnuje se",null,null,null,null,null,"2015-01-01"]
[144,"-15OZP","dovoz zboží 15% plný (ř. 8 a 44)","Přijaté","Ostatní",15,"Pouze základ","A","343","208","plný","343","344",null,null,null,"2016-01-01"]
[145,"-15OZK","dovoz zboží 15% krác. (ř.8 a  44)","Přijaté","Ostatní",15,"Pouze základ","A","343","208","krácený","343","344",null,null,null,"2016-01-01"]
[145,"-10OZP","dovoz zboží 10% plný (ř.8 a  44)","Přijaté","Ostatní",10,"Pouze základ","A","343","208","plný","343","344",null,null,null,"2016-01-01"]
[146,"-15OZK%","POMĚR dovoz zboží 15% krác. (ř. 8 a 44)","Přijaté","Ostatní",15,"Pouze základ","A","343","208","krácený s poměrem","343","344",null,null,null,"2016-01-01"]
[146,"-10OZK","dovoz zboží 10% krác. (ř.8 a  44)","Přijaté","Ostatní",10,"Pouze základ","A","343","208","krácený","343","344",null,null,null,"2016-01-01"]
[147,"-21OCP","dovoz zboží 21% plný Celní úřad (ř. 42)","Přijaté","Ostatní",21,"Pouze základ","N",null,null,"plný","343","342",null,null,null,"2013-01-01"]
[147,"-10OZK%","POMĚR dovoz zboží 10% krác. (ř.8 a  44)","Přijaté","Ostatní",10,"Pouze základ","A","343","208","krácený s poměrem","343","344",null,null,null,"2016-01-01"]
[148,"-21OCK","dovoz zboží 21% krác. Celní úřad (ř. 42)","Přijaté","Ostatní",21,"Pouze základ","N",null,null,"krácený","343","342",null,null,null,"2013-01-01"]
[149,"-21OCK%","POMĚR dovoz zb.21%krác. Celní úřad (ř. 42)","Přijaté","Ostatní",21,"Pouze základ","N",null,null,"krácený s poměrem","343","342",null,null,null,"2013-01-01"]
[150,"-15OCP","dovoz zboží 15% plný Celní úřad (ř. 42)","Přijaté","Ostatní",15,"Pouze základ","N",null,null,"plný","343","342",null,null,null,"2013-01-01"]
[151,"-15OCK","dovoz zboží 15% krác.Celní úřad (ř. 42)","Přijaté","Ostatní",15,"Pouze základ","N",null,null,"krácený","343","342",null,null,null,"2013-01-01"]
[152,"-15OCK%","POMĚR dovoz zb.15% krác.Celní úřad (ř. 42)","Přijaté","Ostatní",15,"Pouze základ","N",null,null,"krácený s poměrem","343","342",null,null,null,"2013-01-01"]
[153,"-21TPD","odpady-přenos daň. pov.  plný nárok 21% (ř.10, 43)","Přijaté","RCH",21,"Pouze základ","A","343","210","plný","343","343",null,"5 - Obchod s odpadem",null,"2013-01-01"]
[154,"-21TPR","ručení za dodavetele - přijaté v tuz. plný nárok 21% (ř.40)","Přijaté","Tuzemsko",21,"Základ+DPH","N",null,null,"plný","343","340",null,null,null,"2013-01-01"]
[155,"-21TKR","ručení za dodavetel - přijaté v tuz. krác. nárok 21% (ř.40)","Přijaté","Tuzemsko",21,"Základ+DPH","N",null,null,"krácený","343","340",null,null,null,"2013-01-01"]
[156,"-21TK%R","ručení za dodav-POMĚR přijaté v tuz.krác.nárok 21% (ř.40)","Přijaté","Tuzemsko",21,"Základ+DPH","N",null,null,"krácený s poměrem","343","340",null,null,null,"2013-01-01"]
[157,"-15TPR","ručení za dodavetele - přijaté v tuz. plný nárok 15% (ř.41)","Přijaté","Tuzemsko",15,"Základ+DPH","N",null,null,"plný","343","341",null,null,null,"2013-01-01"]
[158,"-15TKR","ručení za dodavetele - přijaté v tuz. krác. nárok 15% (ř.41)","Přijaté","Tuzemsko",15,"Základ+DPH","N",null,null,"krácený","343","341",null,null,null,"2013-01-01"]
[159,"-15TK%R","ručení za dodav-POMĚR přijaté v tuz.krác. nárok 15% (ř.41)","Přijaté","Tuzemsko",15,"Základ+DPH","N",null,null,"krácený s poměrem","343","341",null,null,null,"2013-01-01"]
[161,"-10OSP","zboží od osob neusaz.v tuzem. 10% plný (ř.13a44)","Přijaté","Ostatní",10,"Pouze základ","A","343","213","plný","343","343",null,null,null,"2016-01-01"]
[162,"10OSPB","zboží od osob neusaz.v tuzem. 10% bez odp(ř.13)","Přijaté","Ostatní",10,"Pouze základ","A","343","213","nezahrnuje se",null,null,null,null,null,"2016-01-01"]
[163,"-10OSK","zboží od osob neusaz.v tuzem. 10% krác. (ř. 13a44)","Přijaté","Ostatní",10,"Pouze základ","A","343","213","krácený","343","343",null,null,null,"2016-01-01"]
[164,"-10OSK%","POMĚR zboží od osob neusaz.v tuzem 10% krác.(ř.13a44)","Přijaté","Ostatní",10,"Pouze základ","A","343","213","krácený s poměrem","343","343",null,null,null,"2016-01-01"]
[204,"-21UTK%","změna účelu užití POMĚR přij. v tuz. krác. nárok 21% (ř.45)","Přijaté","Tuzemsko",21,"Základ+DPH","N",null,null,"krácený s poměrem","343","345",null,null,null,"2013-01-01","2013-01-02"]
[205,"-15UTK%","změna účelu užití POMĚR přij. v tuz. krác. nárok 15% (ř.45)","Přijaté","Tuzemsko",15,"Základ+DPH","N",null,null,"krácený s poměrem","343","345",null,null,null,"2013-01-01","2013-01-02"]
[206,"-21UTP","změna účelu použití tuzemsko plný nárok 21% (ř.45)","Přijaté","Tuzemsko",21,"Základ+DPH","N",null,null,"plný","343","345",null,null,null,"2013-01-01"]
[207,"-15UTP","změna účelu použití tuzemsko plný nárok 15% (ř.45)","Přijaté","Tuzemsko",15,"Základ+DPH","N",null,null,"plný","343","345",null,null,null,"2013-01-01"]
[0,"MOSS l","OC - MOSS e-learning","Uskutečněné","MOSS",0,"Základ+DPH","A","343","631","nezahrnuje se",null,null,null,null,"běžné plnění","2016-01-01"]
[1,"+0B","osvobozeno bez nároku na odpočet (ř.50)","Uskutečněné","Tuzemsko",0,"Pouze základ","A",null,null,"bez odpočtu",null,null,null,null,"běžné plnění","2004-05-01"]
[1,"+0TE","přenos daň.pov.-el. energie- tuzemsko (ř.25)","Uskutečněné","RCH",0,"Pouze základ","A",null,null,"nezahrnuje se",null,null,null,"19 - Dodání elektřiny soustavami nebo sítěmi obchodníkovi","běžné plnění","2016-01-01",null,0]
[1,"+0TK","přenos daň.pov.-elektron.komun.(ř.25)","Uskutečněné","RCH",0,"Pouze základ","A",null,null,"nezahrnuje se",null,null,null,"21 - Poskytnutí vymezených služeb elektronických komunikací","běžné plnění","2016-10-01",null,0]
[1,"+0TZL","přenos daň.pov.-dodání zlata (ř.25)","Uskutečněné","RCH",0,"Pouze základ","A",null,null,"nezahrnuje se",null,null,null,"1 - Dodání zlata","běžné plnění","2017-01-01",null,0]
[2,"+21T","zdanitelné plnění v tuzemsku 21% (ř.1)","Uskutečněné","Tuzemsko",21,"Základ+DPH","A","343","201","nezahrnuje se",null,null,null,null,"běžné plnění","2013-01-01"]
[3,"+15T","zdanitelné plnění v tuzemsku 15% (ř.2)","Uskutečněné","Tuzemsko",15,"Základ+DPH","A","343","202","nezahrnuje se",null,null,null,null,"běžné plnění","2013-01-01"]
[3,"+10T","zdanitelné plnění v tuzemsku 10% (ř.2)","Uskutečněné","Tuzemsko",10,"Základ+DPH","A","343","202","nezahrnuje se",null,null,null,null,"běžné plnění","2015-01-01"]
[4,"+21ZT","zasílání zboží do EU do limitu  21% (ř.1)","Uskutečněné","Tuzemsko",21,"Základ+DPH","A","343","201","nezahrnuje se",null,null,null,null,"běžné plnění","2013-01-01"]
[5,"+15ZT","zasílání zboží do EU do limitu 15% (ř.2)","Uskutečněné","Tuzemsko",15,"Základ+DPH","A","343","202","nezahrnuje se",null,null,null,null,"běžné plnění","2013-01-01"]
[5,"+10ZT","zasílání zboží do EU do limitu 10% (ř.2)","Uskutečněné","Tuzemsko",10,"Základ+DPH","A","343","202","nezahrnuje se",null,null,null,null,"běžné plnění","2015-01-01"]
[6,"+0EZ","dodání zboží do EU (ř. 20)","Uskutečněné"," EU",0,"Pouze základ","A",null,null,"plný",null,null,"0 - Dodání zboží do jiného státu EU",null,null,"2004-05-01"]
[7,"+MT EU","poskyt.služby pro os.reg. k dani  v EU (ř. 21)","Uskutečněné"," EU",0,"Pouze základ","A",null,null,"nezahrnuje se",null,null,"3 - Poskytnutí služby do jiného státu EU",null,null,"2009-01-01"]
[8,"+MT","poskyt.služby s MP mimo tuzemsko  (ř. 26)","Uskutečněné","Ostatní",0,"Pouze základ","A",null,null,"nezahrnuje se",null,null,null,null,null,"2004-05-01"]
[9,"+0VZ","vývoz zboží (ř. 22)","Uskutečněné","Ostatní",0,"Pouze základ","A",null,null,"plný",null,null,null,null,null,"2004-05-01"]
[10,"+0TD","přenos daň.pov.-odpady - tuzemsko (ř.25)","Uskutečněné","RCH",0,"Pouze základ","A",null,null,"nezahrnuje se",null,null,null,"5 - Obchod s odpadem","běžné plnění","2011-04-01",null,0]
[11,"+0TS","přenos daň.pov.-stavební práce-tuz. (ř.25)","Uskutečněné","RCH",0,"Pouze základ","A",null,null,"nezahrnuje se",null,null,null,"4 - Stavební práce","běžné plnění","2012-01-01",null,0]
[636,"+0TPZ","přenos daň.pov.-přen.zař.pro aut.zprac.dat - tuzemsko (ř.25)","Uskutečněné","RCH",0,"Pouze základ","A",null,null,"nezahrnuje se",null,null,null,"16 - Přenosná zařízení pro automatizované zpracování dat","běžné plnění","2017-01-01",null,0]